[Event "Titled Tuesday Blitz February 14 Late 2023"]
[White "Baghdasaryan, Vahe"]
[Black "Haszon, David"]
[WhiteFideId "13303139"]
[BlackFideId "733610"]
[WhiteElo "2257"]
[BlackElo "2264"]
[Result "0-1"]
[Round "09"]
[TimeControl "180+2"]
[Date "2023.02.14"]
[WhiteClock "0:00:01"]
[BlackClock "0:00:13"]

1. e4 {[%clk 0:02:49]}  c5 {[%clk 0:02:59]} 2. Nf3 {[%clk 0:02:49]}  Nc6 {[%clk 0:02:58]} 3. d4 {[%clk 0:02:49]}  cxd4 {[%clk 0:02:59]} 4. Nxd4 {[%clk 0:02:50]}  Nf6 {[%clk 0:02:58]} 5. Nc3 {[%clk 0:02:50]}  e6 {[%clk 0:02:57]} 6. Ndb5 {[%clk 0:02:48]}  Bc5 {[%clk 0:02:47]} 7. Nd6+ {[%clk 0:02:43]}  Ke7 {[%clk 0:02:46]} 8. Bf4 {[%clk 0:02:44]}  e5 {[%clk 0:02:41]} 9. Nf5+ {[%clk 0:02:44]}  Kf8 {[%clk 0:02:38]} 10. Bg5 {[%clk 0:02:44]}  Bb4 {[%clk 0:02:36]} 11. Bc4 {[%clk 0:02:31]}  d5 {[%clk 0:02:35]} 12. Bxd5 {[%clk 0:02:23]}  Bxf5 {[%clk 0:02:31]} 13. Bxf6 {[%clk 0:02:21]}  Qxf6 {[%clk 0:02:22]} 14. exf5 {[%clk 0:02:20]}  Rd8 {[%clk 0:02:21]} 15. Qd3 {[%clk 0:00:54]}  Nd4 {[%clk 0:02:14]} 16. Be4 {[%clk 0:00:43]}  Nb3 {[%clk 0:01:45]} 17. Qc4 {[%clk 0:00:32]}  Bxc3+ {[%clk 0:01:44]} 18. Qxc3 {[%clk 0:00:29]}  Nxa1 {[%clk 0:01:43]} 19. O-O {[%clk 0:00:29]}  g6 {[%clk 0:01:40]} 20. g4 {[%clk 0:00:22]}  gxf5 {[%clk 0:01:35]} 21. Bxf5 {[%clk 0:00:22]}  h5 {[%clk 0:01:34]} 22. f4 {[%clk 0:00:21]}  Qb6+ {[%clk 0:01:27]} 23. Rf2 {[%clk 0:00:16]}  Rd1+ {[%clk 0:01:25]} 24. Kg2 {[%clk 0:00:16]}  Qc6+ {[%clk 0:01:24]} 25. Qxc6 {[%clk 0:00:15]}  bxc6 {[%clk 0:01:25]} 26. fxe5 {[%clk 0:00:16]}  Ke7 {[%clk 0:01:17]} 27. g5 {[%clk 0:00:15]}  h4 {[%clk 0:01:13]} 28. Bg4 {[%clk 0:00:12]}  Rg8 {[%clk 0:01:12]} 29. Bxd1 {[%clk 0:00:12]}  Rxg5+ {[%clk 0:01:12]} 30. Kh3 {[%clk 0:00:12]}  Rxe5 {[%clk 0:01:04]} 31. Bf3 {[%clk 0:00:08]}  Ra5 {[%clk 0:00:56]} 32. Bxc6 {[%clk 0:00:05]}  Rxa2 {[%clk 0:00:57]} 33. Bd5 {[%clk 0:00:06]}  Rxb2 {[%clk 0:00:56]} 34. Rxf7+ {[%clk 0:00:05]}  Kd6 {[%clk 0:00:57]} 35. c4 {[%clk 0:00:06]}  a5 {[%clk 0:00:55]} 36. Ra7 {[%clk 0:00:04]}  Nb3 {[%clk 0:00:54]} 37. Ra6+ {[%clk 0:00:04]}  Kc5 {[%clk 0:00:51]} 38. Kxh4 {[%clk 0:00:05]}  Rxh2+ {[%clk 0:00:50]} 39. Kg5 {[%clk 0:00:05]}  Ra2 {[%clk 0:00:46]} 40. Be6 {[%clk 0:00:05]}  a4 {[%clk 0:00:46]} 41. Kf5 {[%clk 0:00:04]}  a3 {[%clk 0:00:44]} 42. Ra8 {[%clk 0:00:04]}  Rf2+ {[%clk 0:00:40]} 43. Ke4 {[%clk 0:00:03]}  Re2+ {[%clk 0:00:41]} 44. Kd3 {[%clk 0:00:03]}  Nc1+ {[%clk 0:00:32]} 45. Kc3 {[%clk 0:00:02]}  Rxe6 {[%clk 0:00:20]} 46. Rxa3 {[%clk 0:00:01]}  Ne2+ {[%clk 0:00:19]} 47. Kd3 {[%clk 0:00:01]}  Nf4+ {[%clk 0:00:19]} 48. Kd2 {[%clk 0:00:01]}  Re2+ {[%clk 0:00:19]} 49. Kd1 {[%clk 0:00:01]}  Rh2 {[%clk 0:00:17]} 50. Ra8 {[%clk 0:00:02]}  Nd3 {[%clk 0:00:13]} 51. Rc8+ {[%clk 0:00:02]}  Kd4 {[%clk 0:00:13]} 52. Rf8 {[%clk 0:00:01]}  Ke3 {[%clk 0:00:13]} 0-1


[Site "https://www.chess.com"]

[Event "Titled Tuesday Blitz February 14 Late 2023"]
[White "Delorme, Axel"]
[Black "Kleiman, Jake"]
[WhiteFideId "632023"]
[BlackFideId "2020041"]
[WhiteElo "2483"]
[BlackElo "2399"]
[Result "1-0"]
[Round "09"]
[TimeControl "180+2"]
[Date "2023.02.14"]
[WhiteClock "0:00:09"]
[BlackClock "0:00:04"]

1. e4 {[%clk 0:03:00]}  d6 {[%clk 0:02:56]} 2. d4 {[%clk 0:03:00]}  Nf6 {[%clk 0:02:57]} 3. Nc3 {[%clk 0:03:00]}  e5 {[%clk 0:02:57]} 4. Nf3 {[%clk 0:02:59]}  Nbd7 {[%clk 0:02:55]} 5. Bc4 {[%clk 0:02:58]}  Be7 {[%clk 0:02:56]} 6. a4 {[%clk 0:02:56]}  O-O {[%clk 0:02:56]} 7. O-O {[%clk 0:02:56]}  c6 {[%clk 0:02:57]} 8. Ba2 {[%clk 0:02:56]}  a5 {[%clk 0:02:57]} 9. Re1 {[%clk 0:02:55]}  h6 {[%clk 0:02:58]} 10. h3 {[%clk 0:02:56]}  Nh7 {[%clk 0:02:58]} 11. Be3 {[%clk 0:02:54]}  Ng5 {[%clk 0:02:58]} 12. Nxg5 {[%clk 0:02:35]}  Bxg5 {[%clk 0:02:59]} 13. Qd2 {[%clk 0:02:30]}  Qf6 {[%clk 0:02:54]} 14. Rad1 {[%clk 0:02:27]}  Re8 {[%clk 0:02:49]} 15. Bxg5 {[%clk 0:02:21]}  hxg5 {[%clk 0:02:47]} 16. Ne2 {[%clk 0:02:11]}  Nf8 {[%clk 0:02:42]} 17. Ng3 {[%clk 0:02:04]}  Ng6 {[%clk 0:02:32]} 18. dxe5 {[%clk 0:01:57]}  dxe5 {[%clk 0:02:32]} 19. Qd6 {[%clk 0:01:52]}  Nf4 {[%clk 0:02:14]} 20. Qxf6 {[%clk 0:01:28]}  gxf6 {[%clk 0:02:14]} 21. Rd6 {[%clk 0:01:28]}  Kg7 {[%clk 0:02:13]} 22. Ne2 {[%clk 0:01:22]}  Ng6 {[%clk 0:01:56]} 23. Red1 {[%clk 0:01:16]}  Nf8 {[%clk 0:01:14]} 24. Ng3 {[%clk 0:01:12]}  Kg6 {[%clk 0:01:14]} 25. Rd8 {[%clk 0:01:05]}  Be6 {[%clk 0:01:14]} 26. Rxa8 {[%clk 0:01:03]}  Rxa8 {[%clk 0:01:15]} 27. Bxe6 {[%clk 0:01:02]}  fxe6 {[%clk 0:01:16]} 28. Kf1 {[%clk 0:00:57]}  Kf7 {[%clk 0:01:15]} 29. Ke2 {[%clk 0:00:57]}  Ke7 {[%clk 0:01:16]} 30. Nf1 {[%clk 0:00:55]}  Nd7 {[%clk 0:01:13]} 31. b3 {[%clk 0:00:53]}  Nc5 {[%clk 0:01:12]} 32. f3 {[%clk 0:00:50]}  f5 {[%clk 0:01:09]} 33. exf5 {[%clk 0:00:43]}  exf5 {[%clk 0:01:09]} 34. Ne3 {[%clk 0:00:44]}  Ke6 {[%clk 0:01:08]} 35. Nc4 {[%clk 0:00:43]}  b5 {[%clk 0:00:42]} 36. Rd6+ {[%clk 0:00:34]}  Ke7 {[%clk 0:00:42]} 37. Rxc6 {[%clk 0:00:35]}  bxc4 {[%clk 0:00:27]} 38. Rxc5 {[%clk 0:00:34]}  cxb3 {[%clk 0:00:28]} 39. cxb3 {[%clk 0:00:34]}  Kd6 {[%clk 0:00:28]} 40. Rb5 {[%clk 0:00:30]}  Ra7 {[%clk 0:00:28]} 41. g4 {[%clk 0:00:20]}  f4 {[%clk 0:00:26]} 42. Kd3 {[%clk 0:00:19]}  Ke6 {[%clk 0:00:15]} 43. Ke4 {[%clk 0:00:18]}  Kf6 {[%clk 0:00:16]} 44. Rb6+ {[%clk 0:00:18]}  Kf7 {[%clk 0:00:15]} 45. Kxe5 {[%clk 0:00:17]}  Rc7 {[%clk 0:00:16]} 46. Rb5 {[%clk 0:00:16]}  Rc3 {[%clk 0:00:16]} 47. Kf5 {[%clk 0:00:15]}  Rxf3 {[%clk 0:00:14]} 48. Rxa5 {[%clk 0:00:15]}  Rxb3 {[%clk 0:00:14]} 49. Ra7+ {[%clk 0:00:15]}  Ke8 {[%clk 0:00:13]} 50. Kxg5 {[%clk 0:00:15]}  f3 {[%clk 0:00:13]} 51. Ra5 {[%clk 0:00:15]}  f2 {[%clk 0:00:10]} 52. Rf5 {[%clk 0:00:14]}  Rxh3 {[%clk 0:00:09]} 53. Rxf2 {[%clk 0:00:14]}  Ra3 {[%clk 0:00:09]} 54. Rf4 {[%clk 0:00:15]}  Ke7 {[%clk 0:00:09]} 55. Rb4 {[%clk 0:00:13]}  Kf7 {[%clk 0:00:08]} 56. Rb7+ {[%clk 0:00:12]}  Kf8 {[%clk 0:00:09]} 57. Ra7 {[%clk 0:00:12]}  Ra1 {[%clk 0:00:08]} 58. a5 {[%clk 0:00:13]}  Ra4 {[%clk 0:00:07]} 59. Kf5 {[%clk 0:00:12]}  Ra2 {[%clk 0:00:07]} 60. g5 {[%clk 0:00:13]}  Rc2 {[%clk 0:00:04]} 61. a6 {[%clk 0:00:12]}  Rc6 {[%clk 0:00:03]} 62. g6 {[%clk 0:00:08]}  Kg8 {[%clk 0:00:03]} 63. Kg5 {[%clk 0:00:07]}  Rc1 {[%clk 0:00:03]} 64. Ra8+ {[%clk 0:00:07]}  Kg7 {[%clk 0:00:03]} 65. Ra7+ {[%clk 0:00:08]}  Kg8 {[%clk 0:00:03]} 66. Rb7 {[%clk 0:00:08]}  Rg1+ {[%clk 0:00:03]} 67. Kf6 {[%clk 0:00:08]}  Rf1+ {[%clk 0:00:03]} 68. Ke5 {[%clk 0:00:08]}  Re1+ {[%clk 0:00:04]} 69. Kf5 {[%clk 0:00:08]}  Rf1+ {[%clk 0:00:04]} 70. Ke4 {[%clk 0:00:09]}  Re1+ {[%clk 0:00:04]} 71. Kf3 {[%clk 0:00:09]}  Ra1 {[%clk 0:00:04]} 72. a7 {[%clk 0:00:09]}  Ra6 {[%clk 0:00:04]} 1-0


[Site "https://www.chess.com"]

[Event "Titled Tuesday Blitz February 14 Late 2023"]
[White "Prem, Pranav"]
[Black "Kielinkei"]
[WhiteFideId "30901057"]
[WhiteElo "2061"]
[BlackElo "2399"]
[Result "1-0"]
[Round "09"]
[TimeControl "180+2"]
[Date "2023.02.14"]
[WhiteClock "0:01:20"]
[BlackClock "0:01:00"]

1. d4 {[%clk 0:03:00]}  f5 {[%clk 0:02:57]} 2. c4 {[%clk 0:03:00]}  Nf6 {[%clk 0:02:57]} 3. Nc3 {[%clk 0:02:59]}  e6 {[%clk 0:02:57]} 4. Nf3 {[%clk 0:02:57]}  Bb4 {[%clk 0:02:56]} 5. Qc2 {[%clk 0:02:57]}  b6 {[%clk 0:02:54]} 6. Bf4 {[%clk 0:02:51]}  Bb7 {[%clk 0:02:53]} 7. e3 {[%clk 0:02:49]}  d6 {[%clk 0:02:51]} 8. Be2 {[%clk 0:02:42]}  O-O {[%clk 0:02:50]} 9. O-O {[%clk 0:02:37]}  Bxc3 {[%clk 0:02:50]} 10. Qxc3 {[%clk 0:02:32]}  Ne4 {[%clk 0:02:50]} 11. Qc2 {[%clk 0:02:32]}  Nd7 {[%clk 0:02:50]} 12. h3 {[%clk 0:02:25]}  g5 {[%clk 0:02:37]} 13. Bh2 {[%clk 0:02:23]}  g4 {[%clk 0:02:33]} 14. hxg4 {[%clk 0:02:19]}  fxg4 {[%clk 0:02:34]} 15. Nd2 {[%clk 0:02:16]}  Nxd2 {[%clk 0:02:32]} 16. Qxd2 {[%clk 0:02:17]}  Nf6 {[%clk 0:02:32]} 17. Qd1 {[%clk 0:01:59]}  Rf7 {[%clk 0:02:19]} 18. Bxg4 {[%clk 0:01:55]}  Bxg2 {[%clk 0:01:17]} 19. Bxe6 {[%clk 0:01:36]}  Bxf1 {[%clk 0:01:12]} 20. Qxf1 {[%clk 0:01:33]}  Qe7 {[%clk 0:01:07]} 21. Qg2+ {[%clk 0:01:28]}  Kh8 {[%clk 0:01:06]} 22. Bxf7 {[%clk 0:01:28]}  Qxf7 {[%clk 0:01:07]} 23. Qxa8+ {[%clk 0:01:28]}  Ne8 {[%clk 0:01:02]} 24. Qd5 {[%clk 0:01:26]}  Qg6+ {[%clk 0:01:01]} 25. Kh1 {[%clk 0:01:24]}  Nf6 {[%clk 0:01:00]} 26. Qe6 {[%clk 0:01:20]} 1-0


[Site "https://www.chess.com"]

[Event "Titled Tuesday Blitz February 14 Late 2023"]
[White "Fan_Of_Chucky"]
[Black "Jeet, Jain"]
[BlackFideId "5073022"]
[WhiteElo "2398"]
[BlackElo "2199"]
[Result "1-0"]
[Round "09"]
[TimeControl "180+2"]
[Date "2023.02.14"]
[WhiteClock "0:01:45"]
[BlackClock "0:00:36"]

1. d4 {[%clk 0:03:00]}  d5 {[%clk 0:01:43]} 2. c4 {[%clk 0:03:01]}  c6 {[%clk 0:01:43]} 3. Nf3 {[%clk 0:02:54]}  e6 {[%clk 0:01:42]} 4. g3 {[%clk 0:02:55]}  f5 {[%clk 0:01:38]} 5. Bg2 {[%clk 0:02:54]}  Nf6 {[%clk 0:01:39]} 6. O-O {[%clk 0:02:55]}  Be7 {[%clk 0:01:39]} 7. Nbd2 {[%clk 0:02:55]}  O-O {[%clk 0:01:39]} 8. Ne5 {[%clk 0:02:55]}  Nbd7 {[%clk 0:01:37]} 9. Ndf3 {[%clk 0:02:54]}  Ne4 {[%clk 0:01:37]} 10. b3 {[%clk 0:02:45]}  Ndf6 {[%clk 0:01:35]} 11. Bb2 {[%clk 0:02:37]}  Bd7 {[%clk 0:01:35]} 12. a3 {[%clk 0:02:26]}  a5 {[%clk 0:01:35]} 13. Qc2 {[%clk 0:02:22]}  Be8 {[%clk 0:01:35]} 14. Ne1 {[%clk 0:02:17]}  Bh5 {[%clk 0:01:34]} 15. f3 {[%clk 0:02:14]}  Nd6 {[%clk 0:01:33]} 16. N1d3 {[%clk 0:02:13]}  Rc8 {[%clk 0:01:28]} 17. c5 {[%clk 0:02:11]}  Nf7 {[%clk 0:01:26]} 18. Nf4 {[%clk 0:02:09]}  Nxe5 {[%clk 0:01:11]} 19. dxe5 {[%clk 0:02:10]}  Nd7 {[%clk 0:01:12]} 20. Nxh5 {[%clk 0:02:10]}  Bxc5+ {[%clk 0:01:04]} 21. Kh1 {[%clk 0:02:07]}  g5 {[%clk 0:01:02]} 22. e4 {[%clk 0:01:51]}  Bb6 {[%clk 0:00:45]} 23. exf5 {[%clk 0:01:46]}  Rxf5 {[%clk 0:00:36]} 24. Bh3 {[%clk 0:01:45]} 1-0


[Site "https://www.chess.com"]

[Event "Titled Tuesday Blitz February 14 Late 2023"]
[White "Kaplan, Avi Harrison"]
[Black "Hoffmann, Asa"]
[WhiteFideId "30934559"]
[BlackFideId "2001470"]
[WhiteElo "2146"]
[BlackElo "2185"]
[Result "1-0"]
[Round "09"]
[TimeControl "180+2"]
[Date "2023.02.14"]
[WhiteClock "0:00:05"]
[BlackClock "0:00:01"]

1. g3 {[%clk 0:03:00]}  d6 {[%clk 0:02:55]} 2. Bg2 {[%clk 0:03:00]}  c6 {[%clk 0:02:54]} 3. c4 {[%clk 0:03:00]}  e5 {[%clk 0:02:53]} 4. Nc3 {[%clk 0:03:00]}  Nf6 {[%clk 0:02:52]} 5. d4 {[%clk 0:03:00]}  Qc7 {[%clk 0:02:49]} 6. Nf3 {[%clk 0:02:59]}  Be7 {[%clk 0:02:47]} 7. O-O {[%clk 0:03:00]}  Bf5 {[%clk 0:02:45]} 8. b3 {[%clk 0:03:00]}  Nbd7 {[%clk 0:02:44]} 9. Bb2 {[%clk 0:03:00]}  h6 {[%clk 0:02:44]} 10. Qd2 {[%clk 0:03:00]}  O-O {[%clk 0:02:41]} 11. h3 {[%clk 0:03:01]}  Rfe8 {[%clk 0:02:41]} 12. Rfd1 {[%clk 0:03:02]}  Bf8 {[%clk 0:02:40]} 13. Rac1 {[%clk 0:03:02]}  Ne4 {[%clk 0:02:38]} 14. Nxe4 {[%clk 0:02:59]}  Bxe4 {[%clk 0:02:37]} 15. dxe5 {[%clk 0:03:00]}  Nxe5 {[%clk 0:02:35]} 16. c5 {[%clk 0:02:26]}  Bxf3 {[%clk 0:02:30]} 17. cxd6 {[%clk 0:02:25]}  Bxd6 {[%clk 0:02:21]} 18. exf3 {[%clk 0:02:01]}  Rad8 {[%clk 0:02:14]} 19. Qc3 {[%clk 0:02:00]}  f6 {[%clk 0:02:04]} 20. f4 {[%clk 0:01:56]}  Nf7 {[%clk 0:02:04]} 21. Rd2 {[%clk 0:01:49]}  Qe7 {[%clk 0:01:58]} 22. Rcd1 {[%clk 0:01:48]}  Bb4 {[%clk 0:01:56]} 23. Rxd8 {[%clk 0:01:19]}  Bxc3 {[%clk 0:01:47]} 24. Rxe8+ {[%clk 0:01:20]}  Qxe8 {[%clk 0:01:46]} 25. Bxc3 {[%clk 0:01:21]}  Qe6 {[%clk 0:01:26]} 26. Bf1 {[%clk 0:01:16]}  b5 {[%clk 0:01:19]} 27. Bd4 {[%clk 0:01:09]}  a6 {[%clk 0:01:12]} 28. Bc5 {[%clk 0:01:03]}  g5 {[%clk 0:01:04]} 29. fxg5 {[%clk 0:00:57]}  hxg5 {[%clk 0:01:03]} 30. Rd3 {[%clk 0:00:44]}  Kg7 {[%clk 0:01:01]} 31. Re3 {[%clk 0:00:42]}  Qd5 {[%clk 0:00:58]} 32. Ba3 {[%clk 0:00:38]}  Ne5 {[%clk 0:00:57]} 33. Bb2 {[%clk 0:00:22]}  Nf3+ {[%clk 0:00:50]} 34. Kh1 {[%clk 0:00:22]}  Qd1 {[%clk 0:00:38]} 35. Kg2 {[%clk 0:00:20]}  Ne1+ {[%clk 0:00:32]} 36. Kg1 {[%clk 0:00:20]}  Nc2 {[%clk 0:00:31]} 37. Re7+ {[%clk 0:00:18]}  Kf8 {[%clk 0:00:29]} 38. Bxf6 {[%clk 0:00:18]}  Nd4 {[%clk 0:00:23]} 39. Re3 {[%clk 0:00:06]}  Kf7 {[%clk 0:00:19]} 40. Be5 {[%clk 0:00:04]}  Nf3+ {[%clk 0:00:17]} 41. Kg2 {[%clk 0:00:05]}  Nxe5 {[%clk 0:00:17]} 42. Rxe5 {[%clk 0:00:06]}  Kf6 {[%clk 0:00:16]} 43. Rc5 {[%clk 0:00:05]}  Qd6 {[%clk 0:00:15]} 44. Rc3 {[%clk 0:00:05]}  Qd5+ {[%clk 0:00:14]} 45. Kg1 {[%clk 0:00:06]}  c5 {[%clk 0:00:13]} 46. Bg2 {[%clk 0:00:06]}  Qd4 {[%clk 0:00:13]} 47. Rf3+ {[%clk 0:00:05]}  Kg7 {[%clk 0:00:13]} 48. Rf5 {[%clk 0:00:03]}  Kg6 {[%clk 0:00:12]} 49. Rd5 {[%clk 0:00:03]}  Qa1+ {[%clk 0:00:11]} 50. Kh2 {[%clk 0:00:03]}  Qxa2 {[%clk 0:00:11]} 51. Rxc5 {[%clk 0:00:02]}  Qxf2 {[%clk 0:00:10]} 52. Rc6+ {[%clk 0:00:02]}  Kg7 {[%clk 0:00:10]} 53. Rxa6 {[%clk 0:00:02]}  b4 {[%clk 0:00:09]} 54. Ra4 {[%clk 0:00:01]}  Qd2 {[%clk 0:00:09]} 55. Ra7+ {[%clk 0:00:01]}  Kf6 {[%clk 0:00:08]} 56. Rb7 {[%clk 0:00:02]}  Qc3 {[%clk 0:00:08]} 57. Rb6+ {[%clk 0:00:02]}  Ke5 {[%clk 0:00:07]} 58. Rb5+ {[%clk 0:00:03]}  Kd4 {[%clk 0:00:07]} 59. Rd5+ {[%clk 0:00:03]}  Ke3 {[%clk 0:00:07]} 60. Rb5 {[%clk 0:00:03]}  Qxb3 {[%clk 0:00:06]} 61. Rxg5 {[%clk 0:00:03]}  Qc3 {[%clk 0:00:05]} 62. Rg4 {[%clk 0:00:01]}  b3 {[%clk 0:00:05]} 63. Rg8 {[%clk 0:00:01]}  b2 {[%clk 0:00:05]} 64. Re8+ {[%clk 0:00:02]}  Kd4 {[%clk 0:00:05]} 65. Rd8+ {[%clk 0:00:03]}  Ke5 {[%clk 0:00:05]} 66. Re8+ {[%clk 0:00:03]}  Kf6 {[%clk 0:00:05]} 67. Rb8 {[%clk 0:00:03]}  Qc1 {[%clk 0:00:04]} 68. Rb6+ {[%clk 0:00:04]}  Ke7 {[%clk 0:00:04]} 69. Be4 {[%clk 0:00:03]}  Qd2+ {[%clk 0:00:03]} 70. Kg1 {[%clk 0:00:02]}  Qe3+ {[%clk 0:00:02]} 71. Kh2 {[%clk 0:00:03]}  Qxb6 {[%clk 0:00:02]} 72. h4 {[%clk 0:00:03]}  b1=Q {[%clk 0:00:01]} 73. Bxb1 {[%clk 0:00:04]}  Qxb1 {[%clk 0:00:01]} 74. Kh3 {[%clk 0:00:05]} 1-0


[Site "https://www.chess.com"]

[Event "Titled Tuesday Blitz February 14 Late 2023"]
[White "Reprintsev, Alexander"]
[Black "Skaric, Djuro"]
[WhiteFideId "14100541"]
[BlackFideId "934569"]
[WhiteElo "2253"]
[BlackElo "2334"]
[Result "0-1"]
[Round "09"]
[TimeControl "180+2"]
[Date "2023.02.14"]
[WhiteClock "0:00:02"]
[BlackClock "0:01:03"]

1. e4 {[%clk 0:03:00]}  d6 {[%clk 0:03:00]} 2. d4 {[%clk 0:03:00]}  g6 {[%clk 0:03:01]} 3. h4 {[%clk 0:02:56]}  Nf6 {[%clk 0:02:56]} 4. Nc3 {[%clk 0:02:50]}  Nc6 {[%clk 0:02:55]} 5. d5 {[%clk 0:02:44]}  Ne5 {[%clk 0:02:55]} 6. h5 {[%clk 0:02:37]}  Nxh5 {[%clk 0:02:53]} 7. Rxh5 {[%clk 0:02:31]}  Bg4 {[%clk 0:02:51]} 8. Be2 {[%clk 0:02:21]}  gxh5 {[%clk 0:02:47]} 9. f3 {[%clk 0:02:20]}  Bd7 {[%clk 0:02:46]} 10. Be3 {[%clk 0:02:18]}  a6 {[%clk 0:02:46]} 11. Qd2 {[%clk 0:02:16]}  h6 {[%clk 0:02:44]} 12. O-O-O {[%clk 0:02:12]}  Bg7 {[%clk 0:02:44]} 13. Nh3 {[%clk 0:02:09]}  b5 {[%clk 0:02:43]} 14. Nf4 {[%clk 0:02:01]}  b4 {[%clk 0:02:40]} 15. Nb1 {[%clk 0:01:57]}  a5 {[%clk 0:02:40]} 16. Nxh5 {[%clk 0:01:53]}  Bf8 {[%clk 0:02:40]} 17. f4 {[%clk 0:01:52]}  Ng4 {[%clk 0:02:38]} 18. Bd4 {[%clk 0:01:52]}  Nf6 {[%clk 0:02:24]} 19. Bxf6 {[%clk 0:01:45]}  exf6 {[%clk 0:02:25]} 20. Qd4 {[%clk 0:01:45]}  Qe7 {[%clk 0:02:14]} 21. Nxf6+ {[%clk 0:01:38]}  Kd8 {[%clk 0:02:08]} 22. Nxd7 {[%clk 0:01:38]}  Rg8 {[%clk 0:02:07]} 23. Nf6 {[%clk 0:01:05]}  Rg6 {[%clk 0:02:01]} 24. e5 {[%clk 0:01:00]}  Bg7 {[%clk 0:01:59]} 25. Nd2 {[%clk 0:00:52]}  Bxf6 {[%clk 0:01:27]} 26. exf6 {[%clk 0:00:44]}  Qxe2 {[%clk 0:01:25]} 27. a3 {[%clk 0:00:14]}  Rxg2 {[%clk 0:01:24]} 28. a4 {[%clk 0:00:08]}  Rb8 {[%clk 0:01:19]} 29. b3 {[%clk 0:00:08]}  Kd7 {[%clk 0:01:12]} 30. Rf1 {[%clk 0:00:06]}  Re8 {[%clk 0:01:10]} 31. Rd1 {[%clk 0:00:02]}  h5 {[%clk 0:01:05]} 32. f5 {[%clk 0:00:02]}  Re5 {[%clk 0:01:03]} 0-1


[Site "https://www.chess.com"]

[Event "Titled Tuesday Blitz February 14 Late 2023"]
[White "Petrovic, Aleksa"]
[Black "Delorme, Alban"]
[WhiteFideId "967629"]
[BlackFideId "623636"]
[WhiteElo "2332"]
[BlackElo "2298"]
[Result "1-0"]
[Round "09"]
[TimeControl "180+2"]
[Date "2023.02.14"]
[WhiteClock "0:00:11"]
[BlackClock "0:00:02"]

1. d4 {[%clk 0:02:57]}  Nf6 {[%clk 0:02:59]} 2. c4 {[%clk 0:02:57]}  g6 {[%clk 0:03:00]} 3. Nc3 {[%clk 0:02:55]}  Bg7 {[%clk 0:03:01]} 4. e4 {[%clk 0:02:54]}  d6 {[%clk 0:03:00]} 5. Be2 {[%clk 0:02:55]}  O-O {[%clk 0:03:00]} 6. Nf3 {[%clk 0:02:55]}  e5 {[%clk 0:03:00]} 7. O-O {[%clk 0:02:55]}  exd4 {[%clk 0:03:01]} 8. Nxd4 {[%clk 0:02:55]}  Re8 {[%clk 0:02:59]} 9. f3 {[%clk 0:02:55]}  c6 {[%clk 0:02:59]} 10. Kh1 {[%clk 0:02:48]}  d5 {[%clk 0:02:59]} 11. exd5 {[%clk 0:02:48]}  cxd5 {[%clk 0:02:59]} 12. c5 {[%clk 0:02:48]}  Nc6 {[%clk 0:02:57]} 13. Ncb5 {[%clk 0:02:43]}  Nh5 {[%clk 0:02:49]} 14. Nxc6 {[%clk 0:02:36]}  bxc6 {[%clk 0:02:49]} 15. Nd6 {[%clk 0:02:36]}  Qh4 {[%clk 0:02:42]} 16. Qe1 {[%clk 0:02:15]}  Qxe1 {[%clk 0:02:34]} 17. Rxe1 {[%clk 0:02:16]}  Re7 {[%clk 0:02:26]} 18. Bg5 {[%clk 0:02:15]}  Bf6 {[%clk 0:02:20]} 19. Bxf6 {[%clk 0:01:51]}  Nxf6 {[%clk 0:02:21]} 20. Bd3 {[%clk 0:01:46]}  Be6 {[%clk 0:02:13]} 21. b4 {[%clk 0:01:28]}  d4 {[%clk 0:01:35]} 22. b5 {[%clk 0:01:17]}  cxb5 {[%clk 0:01:32]} 23. Nxb5 {[%clk 0:01:18]}  Nd5 {[%clk 0:01:27]} 24. Nxd4 {[%clk 0:01:12]}  Rc8 {[%clk 0:01:22]} 25. Rac1 {[%clk 0:01:11]}  Nb4 {[%clk 0:01:21]} 26. Bb1 {[%clk 0:00:59]}  Rec7 {[%clk 0:01:05]} 27. a3 {[%clk 0:00:52]}  Nd5 {[%clk 0:00:50]} 28. c6 {[%clk 0:00:28]}  Ne7 {[%clk 0:00:29]} 29. Be4 {[%clk 0:00:28]}  Bd5 {[%clk 0:00:25]} 30. Bxd5 {[%clk 0:00:20]}  Nxd5 {[%clk 0:00:26]} 31. Rc5 {[%clk 0:00:18]}  Nf4 {[%clk 0:00:21]} 32. Re3 {[%clk 0:00:14]}  Ne6 {[%clk 0:00:12]} 33. Nxe6 {[%clk 0:00:14]}  Rxc6 {[%clk 0:00:13]} 34. Rec3 {[%clk 0:00:10]}  Rxc5 {[%clk 0:00:04]} 35. Nxc5 {[%clk 0:00:11]}  Rd8 {[%clk 0:00:01]} 36. h4 {[%clk 0:00:11]}  Kg7 {[%clk 0:00:01]} 37. Ne4 {[%clk 0:00:11]}  Rd1+ {[%clk 0:00:01]} 38. Kh2 {[%clk 0:00:11]}  h5 {[%clk 0:00:02]} 39. Rc7 {[%clk 0:00:11]} 1-0


[Site "https://www.chess.com"]

[Event "Titled Tuesday Blitz February 14 Late 2023"]
[White "Smith, Garrett L"]
[Black "Rodrigues, Tiago Pereira"]
[WhiteFideId "2024829"]
[BlackFideId "2101203"]
[WhiteElo "2047"]
[BlackElo "2155"]
[Result "0-1"]
[Round "09"]
[TimeControl "180+2"]
[Date "2023.02.14"]
[WhiteClock "0:01:04"]
[BlackClock "0:02:23"]

1. e4 {[%clk 0:03:00]}  c5 {[%clk 0:02:59]} 2. a3 {[%clk 0:03:00]}  d5 {[%clk 0:02:58]} 3. exd5 {[%clk 0:03:00]}  Qxd5 {[%clk 0:02:58]} 4. Nc3 {[%clk 0:03:00]}  Qd6 {[%clk 0:02:58]} 5. Bc4 {[%clk 0:02:56]}  a6 {[%clk 0:02:57]} 6. d3 {[%clk 0:02:54]}  e6 {[%clk 0:02:56]} 7. Be3 {[%clk 0:02:45]}  Nf6 {[%clk 0:02:54]} 8. Nge2 {[%clk 0:02:35]}  Qc7 {[%clk 0:02:49]} 9. O-O {[%clk 0:02:30]}  b5 {[%clk 0:02:49]} 10. Ba2 {[%clk 0:02:30]}  Bb7 {[%clk 0:02:49]} 11. Ng3 {[%clk 0:02:23]}  Nbd7 {[%clk 0:02:48]} 12. a4 {[%clk 0:02:17]}  Bc6 {[%clk 0:02:44]} 13. axb5 {[%clk 0:02:15]}  axb5 {[%clk 0:02:43]} 14. Nce4 {[%clk 0:02:05]}  Be7 {[%clk 0:02:41]} 15. Bb3 {[%clk 0:02:00]}  O-O {[%clk 0:02:41]} 16. c3 {[%clk 0:01:52]}  Nd5 {[%clk 0:02:39]} 17. Bg5 {[%clk 0:01:33]}  Rxa1 {[%clk 0:02:38]} 18. Qxa1 {[%clk 0:01:32]}  Ra8 {[%clk 0:02:37]} 19. Qd1 {[%clk 0:01:29]}  Bf8 {[%clk 0:02:33]} 20. d4 {[%clk 0:01:23]}  c4 {[%clk 0:02:33]} 21. Bc2 {[%clk 0:01:24]}  f5 {[%clk 0:02:31]} 22. Nd2 {[%clk 0:01:20]}  h6 {[%clk 0:02:28]} 23. Bh4 {[%clk 0:01:10]}  g5 {[%clk 0:02:27]} 24. Qh5 {[%clk 0:01:07]}  N7f6 {[%clk 0:02:23]} 25. Qg6+ {[%clk 0:01:04]}  Qg7 {[%clk 0:02:23]} 0-1


[Site "https://www.chess.com"]